fUST/lending_fUST_20240919
["ID","MTS","AMOUNT","RATE_DAILY","PERIOD"]
[338568615,1726739450637,-500.0,0.00016712,2]
[338568616,1726739450646,-500.70581007,0.00016712,2]
[338568617,1726739450656,-500.0,0.00016712,2]
[338568618,1726739450666,-500.0,0.00016712,2]
[338568619,1726739450676,-918.24,0.00016712,2]
[338568620,1726739450686,-988.49,0.00016712,2]
[338568621,1726739450695,-500.0,0.00016712,2]
[338568622,1726739450704,-500.0,0.00016712,2]
[338568623,1726739450713,-501.606519,0.00016712,2]
[338568624,1726739450723,-500.0,0.00016712,2]
[338568625,1726739450732,-500.0,0.00016712,2]
[338568626,1726739450741,-500.0,0.00016712,2]
[338568627,1726739450751,-547.84,0.00016712,2]
[338568628,1726739450760,-343.87613117,0.00016712,2]
[338568629,1726739450770,-1684.19,0.00016712,2]
[338568630,1726739450779,-501.83540582,0.00016712,2]
[338568631,1726739450789,-1226.99,0.00016712,2]
[338568632,1726739450798,-500.0,0.00016712,2]
[338568633,1726739450807,-502.15426556,0.00016712,2]
[338568634,1726739450817,-619.37,0.00016712,2]
[338568635,1726739450826,-500.0,0.00016712,2]
[338568636,1726739450835,-500.0,0.00016712,2]
[338568637,1726739450845,-793.11,0.00016712,2]
[338568638,1726739450854,-500.44663247,0.00016712,2]
[338568639,1726739450867,-355.7588151,0.00016712,2]
[338568640,1726739450876,-500.0,0.00016712,2]
[338568641,1726739450885,-500.0,0.00016712,2]
[338568642,1726739450894,-4080.95,0.00016712,2]
[338568643,1726739450904,-1533.79,0.00016712,2]
[338568644,1726739450914,-500.0,0.00016712,2]
[338568645,1726739450923,-500.0,0.00016712,2]
[338568646,1726739450933,-500.0,0.00016712,2]
[338568647,1726739450944,-500.0,0.00016712,2]
[338568648,1726739450954,-833.33,0.00016712,2]
[338568649,1726739450963,-500.0,0.00016712,2]
[338568650,1726739450972,-500.0,0.00016712,2]
[338568651,1726739450981,-532.79,0.00016712,2]
[338568652,1726739450990,-992.43,0.00016712,2]
[338568653,1726739451000,-434.420631,0.00016712,2]
[338568654,1726739451009,-434.420631,0.00016712,2]
[338568655,1726739451018,-724.2,0.00016712,2]
[338568656,1726739451028,-434.420631,0.00016712,2]
[338568657,1726739451037,-500.0,0.00016712,2]
[338568658,1726739451047,-332.739636,0.00016712,2]
[338568659,1726739451056,-500.0,0.00016712,2]
[338568660,1726739451065,-332.739636,0.00016712,2]
[338568661,1726739451075,-332.739636,0.00016712,2]
[338568662,1726739451085,-500.0,0.00016712,2]
[338568663,1726739451095,-151.0,0.00016712,2]
[338568664,1726739451104,-500.0,0.00016712,2]
[338568665,1726739451113,-151.0,0.00016712,2]
[338568666,1726739451122,-151.0,0.00016712,2]
[338568667,1726739451131,-500.0,0.00016712,2]
[338568668,1726739451141,-500.0,0.00016712,2]
[338568669,1726739451151,-151.0,0.00016712,2]
[338568670,1726739451160,-434.420631,0.00016712,2]
[338568671,1726739451170,-500.0,0.00016712,2]
[338568672,1726739451179,-151.0,0.00016712,2]
[338568673,1726739451190,-434.420631,0.00016712,2]
[338568674,1726739451200,-151.0,0.00016712,2]
[338568675,1726739451209,-434.420631,0.00016712,2]
[338568676,1726739451219,-500.0,0.00016712,2]
[338568677,1726739451228,-332.739636,0.00016712,2]
[338568678,1726739451238,-332.739636,0.00016712,2]
[338568679,1726739451247,-332.739636,0.00016712,2]
[338568680,1726739451257,-500.0,0.00016712,2]
[338568681,1726739451266,-500.0,0.00016712,2]
[338568682,1726739451276,-913.85,0.00016712,2]
[338568683,1726739451285,-500.0,0.00016712,2]
[338568684,1726739451295,-500.0,0.00016712,2]
[338568685,1726739451305,-500.0,0.00016712,2]
[338568686,1726739451314,-641.4,0.00016712,2]
[338568687,1726739451324,-500.0,0.00016712,2]
[338568688,1726739451333,-151.0,0.00016712,2]
[338568689,1726739451343,-151.0,0.00016712,2]
[338568690,1726739451352,-151.0,0.00016712,2]
[338568691,1726739451361,-500.0,0.00016712,2]
[338568692,1726739451371,-500.0,0.00016712,2]
[338568693,1726739451380,-833.47,0.00016712,2]
[338568694,1726739451390,-500.0,0.00016712,2]
[338568695,1726739451399,-525.31822053,0.00016712,2]
[338568696,1726739451409,-758.99,0.00016712,2]
[338568697,1726739451418,-500.0,0.00016712,2]
[338568698,1726739451428,-590.34850146,0.00016712,2]
[338568699,1726739451437,-500.0,0.00016712,2]
[338568700,1726739451446,-500.0,0.00016712,2]
[338568701,1726739451456,-660.92,0.00016712,2]
[338568702,1726739451465,-500.0,0.00016712,2]
[338568703,1726739451474,-500.0,0.00016712,2]
[338568704,1726739451483,-564.23070744,0.00016712,2]
[338568705,1726739451493,-500.0,0.00016712,2]
[338568706,1726739451502,-500.0,0.00016712,2]
[338568707,1726739451516,-555.01,0.00016712,2]
[338568708,1726739451530,-500.0,0.00016712,2]
[338568709,1726739451539,-539.28773051,0.00016712,2]
[338568710,1726739451548,-500.0,0.00016712,2]
[338568711,1726739451557,-993.05,0.00016712,2]
[338568712,1726739451567,-258.713938,0.00016712,2]
[338568713,1726739451576,-500.0,0.00016712,2]
[338568714,1726739451585,-500.0,0.00016712,2]
[338568715,1726739451594,-610.59,0.00016712,2]
[338568716,1726739451603,-1552.609418,0.00016712,2]
[338568717,1726739451613,-212.743537,0.00016712,2]
[338568718,1726739451622,-1552.609418,0.00016712,2]
[338568719,1726739451631,-212.743537,0.00016712,2]
[338568720,1726739451641,-1552.609418,0.00016712,2]
[338568721,1726739451650,-212.743537,0.00016712,2]
[338568722,1726739451659,-315.86501001,0.00016712,2]
[338568723,1726739451668,-1552.609418,0.00016712,2]
[338568724,1726739451678,-1552.609418,0.00016712,2]
[338568725,1726739451687,-212.743537,0.00016712,2]
[338568726,1726739451696,-1552.609418,0.00016712,2]
[338568727,1726739451706,-500.0,0.00016712,2]
[338568728,1726739451715,-500.0,0.00016712,2]
[338568729,1726739451724,-212.743537,0.00016712,2]
[338568730,1726739451733,-212.743537,0.00016712,2]
[338568731,1726739451742,-733.61,0.00016712,2]
[338568732,1726739451751,-558.17,0.00016712,2]
[338568733,1726739451762,-500.0,0.00016712,2]
[338568734,1726739451772,-500.0,0.00016712,2]
[338568735,1726739451782,-1052.65,0.00016712,2]
[338568736,1726739451791,-1871.05,0.00016712,2]
[338568737,1726739451800,-581.21,0.00016712,2]
[338568738,1726739451809,-657.458498,0.00016712,2]
[338568739,1726739451818,-657.458498,0.00016712,2]
[338568740,1726739451828,-657.458498,0.00016712,2]
[338568741,1726739451838,-1331.576687,0.00016712,2]
[338568742,1726739451847,-1331.576687,0.00016712,2]
[338568743,1726739451857,-905.66,0.00016712,2]
[338568744,1726739451868,-1331.576687,0.00016712,2]
[338568745,1726739451878,-657.458498,0.00016712,2]
[338568746,1726739451887,-500.0,0.00016712,2]
[338568747,1726739451896,-1331.576687,0.00016712,2]
[338568748,1726739451906,-657.458498,0.00016712,2]
[338568749,1726739451915,-1331.576687,0.00016712,2]
[338568750,1726739451925,-657.458498,0.00016712,2]
[338568751,1726739451937,-1331.576687,0.00016712,2]
[338568752,1726739451947,-500.0,0.00016712,2]
[338568753,1726739451956,-500.0,0.00016712,2]
[338568754,1726739451965,-500.0,0.00016712,2]
[338568755,1726739451974,-500.0,0.00016712,2]
[338568756,1726739451984,-500.0,0.00016712,2]
[338568757,1726739451993,-1793.92,0.00016712,2]
[338568758,1726739452002,-500.0,0.00016712,2]
[338568759,1726739452012,-500.0,0.00016712,2]
[338568760,1726739452023,-545.29,0.00016712,2]
[338568761,1726739452032,-500.0,0.00016712,2]
[338568762,1726739452051,-596.48,0.00016712,2]
[338568763,1726739452061,-500.0,0.00016712,2]
[338568764,1726739452070,-500.0,0.00016712,2]
[338568765,1726739452079,-500.0,0.00016712,2]
[338568766,1726739452089,-151.0,0.00016712,2]
[338568767,1726739452098,-151.0,0.00016712,2]
[338568768,1726739452108,-917.15,0.00016712,2]
[338568769,1726739452117,-500.0,0.00016712,2]
[338568770,1726739452127,-151.0,0.00016712,2]
[338568771,1726739452136,-949.34,0.00016712,2]
[338568772,1726739452146,-500.0,0.00016712,2]
[338568773,1726739452156,-500.0,0.00016712,2]
[338568774,1726739452165,-500.0,0.00016712,2]
[338568775,1726739452174,-500.0,0.00016712,2]
[338568776,1726739452183,-500.0,0.00016712,2]
[338568777,1726739452192,-500.0,0.00016712,2]
[338568778,1726739452202,-415.07825703,0.00016712,2]
[338568779,1726739452212,-604.47,0.00016712,2]
[338568780,1726739452221,-768.54,0.00016712,2]
[338568781,1726739452231,-514.48,0.00016712,2]
[338568782,1726739452240,-500.0,0.00016712,2]
[338568783,1726739452250,-580.38745002,0.00016712,2]
[338568784,1726739452259,-992.26,0.00016712,2]
[338568785,1726739452268,-1506.86,0.00016712,2]
[338568786,1726739452277,-500.0,0.00016712,2]
[338568787,1726739452286,-500.0,0.00016712,2]
[338568788,1726739452296,-165.51306,0.00016712,2]
[338568789,1726739452305,-378.638792,0.00016712,2]
[338568790,1726739452314,-165.51306,0.00016712,2]
[338568791,1726739452323,-378.638792,0.00016712,2]
[338568792,1726739452333,-165.51306,0.00016712,2]
[338568793,1726739452342,-5000.0,0.00016712,2]
[338568794,1726739452597,-378.638792,0.00016712,2]
[338568795,1726739452619,-5000.0,0.00016712,2]
[338568796,1726739452629,-5000.0,0.00016712,2]
[338568797,1726739452638,-500.0,0.00016712,2]
[338568798,1726739452648,-43975.58048977,0.00016712,2]
[338568799,1726739453591,-250.0,0.00015546,2]
[338568800,1726739453601,-250.0,0.00015589,2]
[338568801,1726739453610,-250.0,0.00015631,2]
[338568802,1726739453619,-250.0,0.00015674,2]
[338568803,1726739453629,-250.0,0.00015717,2]
[338568804,1726739453638,-250.0,0.00015759,2]
[338568805,1726739453647,-250.0,0.00015802,2]
[338568806,1726739453656,-250.0,0.00015844,2]
[338568807,1726739453665,-500.0,0.00016438,2]
[338568808,1726739453674,-3032.49117204,0.00016712,2]
[338568809,1726739453686,-9262.84833819,0.00016712,2]
[338568810,1726739453696,-5000.0,0.00016712,2]
[338568811,1726739453706,-5000.0,0.00016712,2]
[338568812,1726739453715,-5000.0,0.00016712,2]
[338568813,1726739453725,-5000.0,0.00016712,2]
[338568814,1726739453736,-2497.82809,0.00016712,2]
[338568815,1726739453745,-378.638792,0.00016712,2]
[338568816,1726739453755,-165.51306,0.00016712,2]
[338568817,1726739453766,-378.638792,0.00016712,2]
[338568818,1726739453775,-165.51306,0.00016712,2]
[338568819,1726739453784,-378.638792,0.00016712,2]
[338568820,1726739453793,-165.51306,0.00016712,2]
[338568821,1726739453803,-500.0,0.00016712,2]
[338568822,1726739453813,-500.0,0.00016712,2]
[338568823,1726739453822,-774.05,0.00016712,2]
[338568824,1726739453832,-500.0,0.00016712,2]
[338568825,1726739453842,-500.0,0.00016712,2]
[338568826,1726739453852,-860.84,0.00016712,2]
[338568827,1726739453864,-9503.67,0.00016712,2]
[338568828,1726739453874,-500.0,0.00016712,2]
[338568829,1726739453883,-500.0,0.00016712,2]
[338568830,1726739453893,-500.0,0.00016712,2]
[338568831,1726739453902,-500.0,0.00016712,2]
[338568832,1726739453913,-923.52,0.00016712,2]
[338568833,1726739453923,-500.0,0.00016712,2]
[338568834,1726739453933,-1671.42,0.00016712,2]
[338568835,1726739453944,-198.901006,0.00016712,2]
[338568836,1726739453953,-1088.58,0.00016712,2]
[338568837,1726739453963,-198.901006,0.00016712,2]
[338568838,1726739453972,-500.0,0.00016712,2]
[338568839,1726739453981,-198.901006,0.00016712,2]
[338568840,1726739453991,-500.0,0.00016712,2]
[338568841,1726739454001,-500.90650127,0.00016712,2]
[338568842,1726739454012,-500.0,0.00016712,2]
[338568843,1726739454021,-198.901006,0.00016712,2]
[338568844,1726739454031,-198.901006,0.00016712,2]
[338568845,1726739454041,-198.901006,0.00016712,2]
[338568846,1726739454051,-500.0,0.00016712,2]
[338568847,1726739454060,-500.0,0.00016712,2]
[338568848,1726739454070,-540.71,0.00016712,2]
[338568849,1726739454079,-500.0,0.00016712,2]
[338568850,1726739454090,-500.0,0.00016773,2]
[338568851,1726739454099,-500.0,0.00016773,2]
[338568852,1726739454109,-503.76687854,0.00016773,2]
[338568853,1726739454119,-150.112233,0.000169,2]
[338568854,1726739454129,-184.83287,0.00016976,2]
[338568855,1726739454139,-151.0,0.00016976,2]
[338568856,1726739454149,-151.0,0.00016976,2]
[338568857,1726739454158,-151.0,0.00016976,2]
[338568858,1726739454167,-2306.38173834,0.00016986,5]
[338568859,1726739454177,-501.64769811,0.00016986,2]
[338568860,1726739454186,-541.83,0.00016986,2]
[338568861,1726739454196,-500.0,0.00016986,2]
[338568862,1726739454205,-533.10278602,0.00016986,2]
[338568863,1726739454214,-151.0,0.00016986,2]
[338568864,1726739454224,-151.0,0.00016986,2]
[338568865,1726739454233,-500.0,0.00016986,2]
[338568866,1726739454243,-1773.07,0.00016986,2]
[338568867,1726739454252,-180.882616,0.00016986,2]
[338568868,1726739454261,-151.0,0.00016986,2]
[338568869,1726739454271,-1253.16,0.00016986,2]
[338568870,1726739454280,-180.882616,0.00016986,2]
[338568871,1726739454290,-151.0,0.00016986,2]
[338568872,1726739454301,-151.0,0.00016986,2]
[338568873,1726739454310,-500.0,0.00016986,2]
[338568874,1726739454320,-523.46,0.00016986,2]
[338568875,1726739454329,-1725.68,0.00016986,2]
[338568876,1726739454339,-500.0,0.00016986,2]
[338568877,1726739454350,-500.0,0.00016986,2]
[338568878,1726739454360,-500.0,0.00016986,2]
[338568879,1726739454370,-500.0,0.00016986,2]
[338568880,1726739454379,-514.55,0.00016986,2]
[338568881,1726739454388,-151.0,0.00016986,2]
[338568882,1726739454398,-152.253317,0.00016986,2]
[338568883,1726739454408,-500.0,0.00016986,2]
[338568884,1726739454417,-500.0,0.00016986,2]
[338568885,1726739454427,-501.92729888,0.00016986,2]
[338568886,1726739454437,-500.0,0.00016986,2]
[338568887,1726739454447,-500.0,0.00016986,2]
[338568888,1726739454457,-151.0,0.00016986,2]
[338568889,1726739454466,-151.0,0.00016986,2]
[338568890,1726739454476,-500.0,0.00016986,2]
[338568891,1726739454486,-500.0,0.00016986,2]
[338568892,1726739454495,-1917.23,0.00016986,2]
[338568893,1726739454504,-500.0,0.00016986,2]
[338568894,1726739454514,-151.0,0.00016986,2]
[338568895,1726739454524,-151.0,0.00016986,2]
[338568896,1726739454533,-1813.82,0.00016986,2]
[338568897,1726739454543,-500.0,0.00016986,2]
[338568898,1726739454554,-500.0,0.00016986,2]
[338568899,1726739454564,-427.33169991,0.00016986,2]
[338568900,1726739454573,-500.0,0.00016986,2]
[338568901,1726739454584,-500.0,0.00016986,2]
[338568902,1726739454594,-758.63,0.00016986,2]
[338568903,1726739454604,-876.05,0.00016986,2]
[338568904,1726739454613,-870.3,0.00016986,2]
[338568905,1726739454623,-500.0,0.00016986,2]
[338568906,1726739454632,-500.0,0.00016986,2]
[338568907,1726739454641,-1014.89,0.00016986,2]
[338568908,1726739454651,-500.0,0.00016986,2]
[338568909,1726739454660,-500.0,0.00016986,2]
[338568910,1726739454670,-151.0,0.00016986,2]
[338568911,1726739454679,-508.5,0.00016986,2]
[338568912,1726739454689,-995.15,0.00016986,2]
[338568913,1726739454699,-972.67,0.00016986,2]
[338568914,1726739454708,-500.0,0.00016986,2]
[338568915,1726739454717,-151.0,0.00016986,2]
[338568916,1726739454726,-1109.51,0.00016986,2]
[338568917,1726739454735,-151.0,0.00016986,2]
[338568918,1726739454745,-500.0,0.00016986,2]
[338568919,1726739454754,-500.0,0.00016986,2]
[338568920,1726739454819,-500.0,0.00016986,2]
[338568921,1726739454829,-946.29,0.00016986,2]
[338568922,1726739454838,-500.0,0.00016986,2]
[338568923,1726739454848,-1004.81,0.00016986,2]
[338568924,1726739454857,-500.0,0.00016986,2]
[338568925,1726739454870,-156.785684,0.00016986,2]
[338568926,1726739454879,-766.47,0.00016986,2]
[338568927,1726739454889,-500.0,0.00016986,2]
[338568928,1726739454898,-151.0,0.00016986,2]
[338568929,1726739454909,-564.43,0.00016986,2]
[338568930,1726739454918,-926.76,0.00016986,2]
[338568931,1726739454928,-774.6,0.00016986,2]
[338568932,1726739454940,-500.0,0.00016986,2]
[338568933,1726739454950,-501.24346898,0.00016986,2]
[338568934,1726739454959,-402.403334,0.00016986,2]
[338568935,1726739454968,-402.403334,0.00016986,2]
[338568936,1726739454978,-500.0,0.00016986,2]
[338568937,1726739454987,-402.403334,0.00016986,2]
[338568938,1726739454996,-500.0,0.00016986,2]
[338568939,1726739455006,-402.403334,0.00016986,2]
[338568940,1726739455016,-327.15999306,0.00016986,2]
[338568941,1726739455025,-549.51,0.00016986,2]
[338568942,1726739455034,-500.76,0.00016986,2]
[338568943,1726739455044,-715.82,0.00016986,2]
[338568944,1726739455054,-312.23486903,0.00016986,2]
[338568945,1726739455063,-500.0,0.00016986,2]
[338568946,1726739455073,-500.0,0.00016986,2]
[338568947,1726739455082,-500.0,0.00016986,2]
[338568948,1726739455193,-500.0,0.00016986,2]
[338568949,1726739455203,-151.0,0.00016986,2]
[338568950,1726739455212,-500.0,0.00016986,2]
[338568951,1726739455223,-500.0,0.00016986,2]
[338568952,1726739455232,-500.0,0.00016986,2]
[338568953,1726739455242,-500.0,0.00016986,2]
[338568954,1726739455252,-151.0,0.00016986,2]
[338568955,1726739455262,-151.0,0.00016986,2]
[338568956,1726739455273,-500.0,0.00016986,2]
[338568957,1726739455283,-500.0,0.00016986,2]
[338568958,1726739455293,-500.0,0.00016986,2]
[338568959,1726739455302,-509.46868755,0.00016986,2]
[338568960,1726739455312,-500.0,0.00016986,2]
[338568961,1726739455321,-1631.8,0.00016986,2]
[338568962,1726739455331,-1069.83,0.00016986,2]
[338568963,1726739455340,-500.0,0.00016986,2]
[338568964,1726739455349,-500.0,0.00016986,2]
[338568965,1726739455359,-500.0,0.00016986,2]
[338568966,1726739455368,-568.56,0.00016986,2]
[338568967,1726739455378,-500.0,0.00016986,2]
[338568968,1726739455388,-500.0,0.00016986,2]
[338568969,1726739455398,-712.88,0.00016986,2]
[338568970,1726739455407,-2789.7,0.00016986,2]
[338568971,1726739455417,-500.0,0.00016986,2]
[338568972,1726739455426,-151.0,0.00016986,2]
[338568973,1726739455435,-151.0,0.00016986,2]
[338568974,1726739455445,-500.0,0.00016986,2]
[338568975,1726739455454,-917.09,0.00016986,2]
[338568976,1726739455464,-500.0,0.00016986,2]
[338568977,1726739455474,-1025.05,0.00016986,2]
[338568978,1726739455484,-500.0,0.00016986,2]
[338568979,1726739455493,-568.07,0.00016986,2]
[338568980,1726739455503,-500.0,0.00016986,2]
[338568981,1726739455515,-500.0,0.00016986,2]
[338568982,1726739455524,-500.0,0.00016986,2]
[338568983,1726739455533,-536.84,0.00016986,2]
[338568984,1726739455541,-793.45,0.00016986,2]
[338568985,1726739455551,-1444.93,0.00016986,2]
[338568986,1726739455560,-957.72,0.00016986,2]
[338568987,1726739455570,-500.0,0.00016986,2]
[338568988,1726739455581,-923.62,0.00016986,2]
[338568989,1726739455590,-1203.94,0.00016986,2]
[338568990,1726739455600,-500.0,0.00016986,2]
[338568991,1726739455610,-500.0,0.00016986,2]
[338568992,1726739455619,-500.0,0.00016986,2]
[338568993,1726739455629,-553.21,0.00016986,2]
[338568994,1726739455639,-826.68,0.00016986,2]
[338568995,1726739455648,-500.0,0.00016986,2]
[338568996,1726739455658,-1089.16,0.00016986,2]
[338568997,1726739455667,-576.45,0.00016986,2]
[338568998,1726739455676,-500.0,0.00016986,2]
[338568999,1726739455686,-500.0,0.00016986,2]
[338569000,1726739455695,-500.0,0.00016986,2]
[338569001,1726739455704,-500.0,0.00016986,2]
[338569002,1726739455714,-500.50203365,0.00016986,2]
[338569003,1726739455723,-500.0,0.00016986,2]
[338569004,1726739455732,-500.0,0.00016986,2]
[338569005,1726739455741,-151.0,0.00016986,2]
[338569006,1726739455750,-500.0,0.00016986,2]
[338569007,1726739455760,-151.0,0.00016986,2]
[338569008,1726739455771,-500.0,0.00016986,2]
[338569009,1726739455782,-500.0,0.00016986,2]
[338569010,1726739455791,-2099.24,0.00016986,2]
[338569011,1726739455801,-864.18,0.00016986,2]
[338569012,1726739455811,-151.0,0.00016986,2]
[338569013,1726739455820,-501.8688841,0.00016986,2]
[338569014,1726739455830,-151.0,0.00016986,2]
[338569015,1726739455839,-1100.84,0.00016986,2]
[338569016,1726739455848,-500.0,0.00016986,2]
[338569017,1726739455859,-500.0,0.00016986,2]
[338569018,1726739455870,-500.0,0.00016986,2]
[338569019,1726739455880,-500.0,0.00016986,2]
[338569020,1726739455889,-1457.96,0.00016986,2]
[338569021,1726739455899,-500.0,0.00016986,2]
[338569022,1726739455909,-151.0,0.00016986,2]
[338569023,1726739455918,-1549.58,0.00016986,2]
[338569024,1726739455927,-500.0,0.00016986,2]
[338569025,1726739455937,-1199.66,0.00016986,2]
[338569026,1726739455947,-678.68,0.00016986,2]
[338569027,1726739455957,-805.2,0.00016986,2]
[338569028,1726739455967,-1557.42,0.00016986,2]
[338569029,1726739455976,-1377.09,0.00016986,2]
[338569030,1726739455986,-500.0,0.00016986,2]
[338569031,1726739455996,-500.0,0.00016986,2]
[338569032,1726739456005,-987.91,0.00016986,2]
[338569033,1726739456014,-500.0,0.00016986,2]
[338569034,1726739456024,-500.0,0.00016986,2]
[338569035,1726739456034,-500.0,0.00016986,2]
[338569036,1726739456043,-933.28,0.00016986,2]
[338569037,1726739456053,-500.0,0.00016986,2]
[338569038,1726739456063,-964.43,0.00016986,2]
[338569039,1726739456073,-500.0,0.00016986,2]
[338569040,1726739456082,-1516.8,0.00016986,2]
[338569041,1726739456092,-1110.79,0.00016986,2]
[338569042,1726739456102,-817.72,0.00016986,2]
[338569043,1726739456112,-500.0,0.00016986,2]
[338569044,1726739456121,-241.44670329,0.00016986,2]
[338569045,1726739456131,-2343.82,0.00016986,2]
[338569046,1726739456141,-500.0,0.00016986,2]
[338569047,1726739456150,-500.0,0.00016986,2]
[338569048,1726739456159,-500.0,0.00016986,2]
[338569049,1726739456169,-500.0,0.00016986,2]
[338569050,1726739456178,-625.34922717,0.00016986,2]
[338569051,1726739456187,-500.0,0.00016986,2]
[338569052,1726739456197,-500.0,0.00016986,2]
[338569053,1726739456207,-500.0,0.00016986,2]
[338569054,1726739456215,-255.88240982,0.00016986,2]
[338569055,1726739456226,-2360.1,0.00016986,2]
[338569056,1726739456235,-1731.83,0.00016986,2]
[338569057,1726739456244,-500.0,0.00016986,2]
[338569058,1726739456254,-500.0,0.00016986,2]
[338569059,1726739456265,-880.03,0.00016986,2]
[338569060,1726739456275,-500.0,0.00016986,2]
[338569061,1726739456284,-652.74,0.00016986,2]
[338569062,1726739456295,-500.0,0.00016986,2]
[338569063,1726739456305,-597.50673896,0.00016986,2]
[338569064,1726739456314,-613.1,0.00016986,2]
[338569065,1726739456324,-500.0,0.00016986,2]
[338569066,1726739456333,-500.0,0.00016986,2]
[338569067,1726739456343,-500.0,0.00016986,2]
[338569068,1726739456352,-500.0,0.00016986,2]
[338569069,1726739456361,-885.45,0.00016986,2]
[338569070,1726739456372,-500.0,0.00016986,2]
[338569071,1726739456381,-1330.87,0.00016986,2]
[338569072,1726739456390,-441.34291603,0.00016986,2]
[338569073,1726739456401,-2829.71,0.00016986,2]
[338569074,1726739456410,-1018.6,0.00016986,2]
[338569075,1726739456420,-1268.66,0.00016986,2]
[338569076,1726739456429,-500.0,0.00016986,2]
[338569077,1726739456439,-1994.98,0.00016986,2]
[338569078,1726739456449,-500.0,0.00016986,2]
[338569079,1726739456458,-1142.71,0.00016986,2]
[338569080,1726739456468,-640.01,0.00016986,2]
[338569081,1726739456478,-850.24,0.00016986,2]
[338569082,1726739456487,-500.0,0.00016986,2]
[338569083,1726739456496,-500.0,0.00016986,2]
[338569084,1726739456505,-500.0,0.00016986,2]
[338569085,1726739456515,-500.0,0.00016986,2]
[338569086,1726739456525,-500.0,0.00016986,2]
[338569087,1726739456534,-588.28,0.00016986,2]
[338569088,1726739456544,-1167.6,0.00016986,2]
[338569089,1726739456553,-500.0,0.00016986,2]
[338569090,1726739456562,-500.0,0.00016986,2]
[338569091,1726739456571,-500.0,0.00016986,2]
[338569092,1726739456580,-500.0,0.00016986,2]
[338569093,1726739456589,-500.0,0.00016986,2]
[338569094,1726739456598,-672.92,0.00016986,2]
[338569095,1726739456607,-500.0,0.00016986,2]
[338569096,1726739456617,-500.0,0.00016986,2]
[338569097,1726739456626,-1038.41,0.00016986,2]
[338569098,1726739456636,-542.53,0.00016986,2]
[338569099,1726739456645,-227.58702195,0.00016986,2]
[338569100,1726739456666,-646.08,0.00016986,2]
[338569101,1726739456677,-537.8,0.00016986,2]
[338569102,1726739456687,-500.0,0.00016986,2]
[338569103,1726739456697,-151.0,0.00016986,2]
[338569104,1726739456706,-151.0,0.00016986,2]
[338569105,1726739456716,-522.201644,0.00016986,2]
[338569106,1726739456725,-522.201644,0.00016986,2]
[338569107,1726739456735,-567.16,0.00016986,2]
[338569108,1726739456745,-500.0,0.00016986,2]
[338569109,1726739456755,-500.0,0.00016986,2]
[338569110,1726739456765,-652.31,0.00016986,2]
[338569111,1726739456775,-522.201644,0.00016986,2]
[338569112,1726739456785,-522.201644,0.00016986,2]
[338569113,1726739456794,-500.0,0.00016986,2]
[338569114,1726739456804,-577.86,0.00016986,2]